bitfinex/quotes_ETHUSD_20241024
["timestamp","ask_amount","ask_price","bid_price","bid_amount"]
[1729796349181,4.00709056,2525.6,2525.5,1.85778271]
[1729796351683,4.00709056,2525.6,2525.5,1.85863199]
[1729796352501,0.04764056,2525.6,2525.5,1.85863199]
[1729796352736,0.04764056,2525.6,2525.5,9.24597174]
[1729796352921,0.04764056,2525.6,2525.5,11.03486063]
[1729796353084,4.77854,2526.2,2525.7,0.7685]
[1729796353085,3.95869,2526.1,2525.7,0.7685]
[1729796353286,3.95869,2526.1,2525.8,1.03147581]
[1729796353480,0.04648943,2526.0,2525.7,3.22529161]
[1729796353680,0.04648943,2526.0,2525.8,1.0311103]
[1729796353912,4.00530943,2526.0,2525.7,1.59995444]
[1729796354090,3.95898,2525.9,2525.8,1.03117725]
[1729796354579,4.00538239,2525.9,2525.8,1.03117725]
[1729796356477,4.00538239,2525.9,2525.8,1.03092493]
[1729796358630,4.00538239,2525.9,2525.7,0.7685]
[1729796362519,4.00538239,2525.9,2525.6,0.83145444]
[1729796362716,4.00538239,2525.9,2525.7,1.03062227]
[1729796363017,4.00538239,2525.9,2525.6,0.83145444]
[1729796363327,4.00538239,2525.9,2525.7,1.03064223]
[1729796363614,4.00538239,2525.9,2525.6,0.83145444]
[1729796363930,4.00538239,2525.9,2525.7,1.03062926]
[1729796364139,4.00538239,2525.9,2525.6,0.83145444]
[1729796364431,4.00538239,2525.9,2525.7,1.03057358]
[1729796364642,4.00538239,2525.9,2525.6,0.83145444]
[1729796364843,4.00538239,2525.9,2525.7,1.03055763]
[1729796364999,4.00538239,2525.9,2525.6,0.83145444]
[1729796365201,4.00538239,2525.9,2525.7,1.03053306]
[1729796365432,0.04640239,2525.9,2525.8,1.03035075]
[1729796365638,0.04640239,2525.9,2525.8,11.339064]
[1729796365852,0.04640239,2525.9,2525.8,14.42639121]
[1729796366139,3.95807,2526.5,2526.1,4.77226]
[1729796366328,3.95807,2526.5,2526.2,2.65518459]
[1729796366530,3.95807,2526.5,2526.2,1.62533717]
[1729796366710,3.95775,2526.7,2526.4,1.62533717]
[1729796366903,3.95775,2526.7,2526.5,1.62533717]
[1729796367937,3.95775,2526.7,2526.6,1.62533717]
[1729796368145,3.95775,2526.7,2526.5,1.62533717]
[1729796368346,3.95775,2526.7,2526.4,2.43893717]
[1729796369649,0.04374011,2526.6,2526.4,2.43893717]
[1729796370011,3.95814,2526.5,2526.2,0.8189]
[1729796370210,0.04356609,2526.4,2526.2,1.84688959]
[1729796370413,0.04356609,2526.4,2526.2,0.8189]
[1729796370945,0.04356609,2526.4,2526.2,2.44423717]
[1729796371144,0.04356609,2526.4,2526.2,0.8189]
[1729796371318,0.04356609,2526.4,2526.1,2.65292019]
[1729796371527,7.91628,2526.5,2526.1,2.65292019]
[1729796371751,0.04347906,2526.3,2526.1,2.65292019]
[1729796371926,7.91628,2526.5,2526.1,2.65292019]
[1729796372127,0.04339204,2526.2,2526.1,2.65292019]
[1729796372440,0.04339204,2526.2,2526.1,1.62533717]
[1729796372610,7.9163,2526.5,2526.1,1.62533717]
[1729796372807,0.04356609,2526.4,2526.1,2.65281445]
[1729796373056,0.04356609,2526.4,2526.1,1.62533717]
[1729796373345,0.04356609,2526.4,2526.1,5.58399717]
[1729796375645,0.04356609,2526.4,2526.0,4.79165]
[1729796375646,4.00181609,2526.4,2526.0,0.8329]
[1729796375940,4.00181609,2526.4,2525.8,0.7696]
[1729796375941,3.95881,2526.1,2525.8,0.7696]
[1729796376114,3.95884,2526.0,2525.8,0.7696]
[1729796376314,4.00205795,2526.0,2525.8,0.7696]
[1729796376862,0.04321795,2526.0,2525.7,5.58462717]
[1729796377755,0.04321795,2526.0,2525.8,1.62533717]
[1729796378654,3.95869,2526.1,2525.8,1.62533717]
[1729796378865,0.04288462,2526.0,2525.8,1.62533717]
[1729796379562,3.95867,2526.1,2525.8,1.62533717]
[1729796379734,0.04279757,2525.9,2525.8,1.62533717]
[1729796379936,3.95867,2526.1,2525.8,1.62533717]
[1729796380135,0.04279757,2525.9,2525.8,1.62533717]
[1729796380362,3.95867,2526.1,2525.8,1.62533717]
[1729796380859,0.04301942,2526.0,2525.8,1.62533717]
[1729796381763,0.04301942,2526.0,2525.9,2.43443717]
[1729796382129,3.95864,2526.2,2525.9,0.8091]
[1729796382359,0.04301942,2526.0,2525.9,2.43443717]
[1729796382863,3.95864,2526.2,2525.9,2.43443717]
[1729796383157,0.04310647,2526.1,2525.9,2.43443717]
[1729796386169,0.04310647,2526.1,2526.0,5.58415717]
[1729796386665,0.04324876,2526.1,2526.0,5.58415717]
[1729796386864,3.95805,2526.5,2526.1,3.95865]
[1729796387050,0.04350985,2526.4,2526.3,2.41413717]
[1729796387255,0.8181,2526.6,2526.3,2.41413717]
[1729796387463,0.0436343,2526.5,2526.3,2.41413717]
[1729796387766,0.0436343,2526.5,2526.3,0.7888]
[1729796387965,4.0017443,2526.5,2526.3,0.7888]
[1729796389440,0.0436343,2526.5,2526.3,0.7888]
[1729796389745,0.0436343,2526.5,2526.4,1.62533717]
[1729796390174,7.91563,2526.7,2526.4,1.62533717]
[1729796390337,7.91562,2526.7,2526.4,1.62533717]
[1729796390536,3.95775,2526.7,2526.4,1.62533717]
[1729796390939,7.91557,2526.7,2526.4,1.62533717]
[1729796391276,3.95775,2526.7,2526.3,2.41413717]
[1729796391573,3.95791,2526.6,2526.3,2.41413717]
[1729796391881,4.00051253,2526.6,2526.3,2.41413717]
[1729796392471,4.00051253,2526.6,2526.3,0.7888]
[1729796392671,5.53885625,2526.5,2526.0,10.36812717]
[1729796392977,0.04244724,2526.4,2526.1,5.58394717]
[1729796393337,0.04244724,2526.4,2526.1,3.95861]
[1729796394069,0.04244724,2526.4,2526.1,5.58394717]
[1729796394738,0.04244724,2526.4,2526.1,3.95861]
[1729796395164,0.04244724,2526.4,2526.1,5.58394717]
[1729796395476,0.04244724,2526.4,2526.1,6.703549]
[1729796397485,0.04244724,2526.4,2526.1,5.58394717]
[1729796400280,0.04244724,2526.4,2526.1,3.95861]
[1729796400580,3.95867,2526.1,2525.7,6.41263828]
[1729796400750,3.95867,2526.1,2525.8,2.65328746]
[1729796400950,3.95867,2526.1,2525.8,1.62533717]
[1729796401273,3.95867,2526.1,2525.9,1.62533717]
[1729796401710,3.95867,2526.1,2525.8,1.62533717]
[1729796401878,3.95867,2526.1,2525.6,0.82803111]
[1729796401879,3.95914,2525.8,2525.6,0.82803111]
[1729796402084,3.95929,2525.7,2525.4,2.65362596]
[1729796402404,4.7306,2526.0,2525.6,6.38968717]
[1729796402705,3.95913,2525.9,2525.6,0.8049]
[1729796402910,5.20366,2526.0,2525.6,4.76431]
[1729796403205,4.73054,2526.0,2525.6,4.76431]
[1729796403411,4.73054,2526.0,2525.6,0.8049]
[1729796403567,4.73054,2526.0,2525.6,5.7924955]
[1729796403768,4.73054,2526.0,2525.7,1.62533717]
[1729796404107,1.62533717,2526.3,2525.9,1.62533717]
[1729796404108,3.95852,2526.2,2525.9,1.62533717]
[1729796404274,3.95852,2526.2,2526.0,1.62533717]
[1729796404472,3.95852,2526.2,2525.9,1.62533717]
[1729796404781,3.95869,2526.1,2525.8,1.62533717]
[1729796404964,3.95852,2526.2,2525.7,1.62533717]
[1729796404965,3.95883,2526.0,2525.7,1.62533717]
[1729796405350,3.95883,2526.0,2525.6,4.76434]
[1729796405351,3.95883,2526.0,2525.6,6.38967717]
[1729796405507,3.36980589,2526.0,2525.5,0.82890787]
[1729796405666,3.95961,2525.5,2525.3,1.02839604]
[1729796406011,3.96005,2525.3,2525.1,2.65373321]
[1729796406171,3.96023,2525.1,2525.0,0.82890787]
[1729796406368,3.96023,2525.1,2524.6,4.73799]
[1729796406369,3.96044,2525.0,2524.7,0.82890787]
[1729796406568,3.96023,2525.1,2524.8,1.02898764]
[1729796406569,3.96025,2525.1,2524.8,1.02898764]
[1729796407380,3.96002,2525.3,2525.0,1.62533717]
[1729796407574,3.96012,2525.2,2525.0,1.62533717]
[1729796408374,3.96012,2525.2,2524.7,3.96084]
[1729796408574,3.96002,2525.3,2524.8,3.9607]
[1729796408903,3.96001,2525.3,2524.8,7.92133]
[1729796409113,3.95984,2525.4,2524.9,3.96047]
[1729796410320,3.95996,2525.3,2524.9,3.96047]
[1729796411112,3.95984,2525.4,2524.9,3.96047]
[1729796411596,3.95999,2525.3,2524.9,3.96047]
[1729796414020,3.9601,2525.2,2524.7,7.92148]
[1729796414228,3.9601,2525.2,2524.7,9.12180508]
[1729796414430,3.9601,2525.2,2524.8,3.96065]
[1729796414634,3.95999,2525.3,2524.8,3.96065]
[1729796415525,7.92005,2525.3,2524.8,3.96065]
[1729796415697,0.0403655,2525.2,2524.8,3.96065]
[1729796416139,3.95999,2525.3,2524.8,3.96065]
[1729796416333,0.04027465,2525.1,2524.9,3.96054]
[1729796416544,0.04047228,2525.2,2524.9,3.96054]
[1729796416746,0.04029808,2525.0,2524.9,3.96054]
[1729796416953,3.95999,2525.3,2524.9,3.96054]
[1729796417428,0.04047228,2525.2,2524.9,3.96054]
[1729796417633,3.95999,2525.3,2524.9,3.96054]
[1729796417802,0.04047228,2525.2,2524.9,3.96054]
[1729796418006,3.95978,2525.4,2525.0,3.96032]
[1729796418341,4.74993,2525.5,2525.0,3.96032]
[1729796418342,0.04055937,2525.3,2525.1,3.96023]
[1729796418513,0.04055937,2525.3,2525.1,4.03942571]
[1729796418720,3.95969,2525.5,2525.2,0.81101965]
[1729796418918,0.04041982,2525.2,2525.1,4.03942571]
[1729796419119,3.95969,2525.5,2525.1,4.03942571]
[1729796419625,3.95969,2525.5,2525.1,3.96023]
[1729796419626,0.04057868,2525.4,2525.1,3.96023]
[1729796420839,4.00034868,2525.4,2525.0,7.72639]
[1729796422806,4.00034868,2525.4,2525.0,0.766]
[1729796423010,3.96018,2525.2,2524.8,0.8035]
[1729796423212,0.04028721,2525.1,2524.8,4.76414]
[1729796423606,0.04028721,2525.1,2524.5,4.78996787]
[1729796423816,3.96071,2524.8,2524.5,0.767]
[1729796424017,4.00075458,2524.7,2524.5,0.767]
[1729796424225,3.9611,2524.6,2524.2,0.767]
[1729796424437,3.96119,2524.5,2524.2,0.767]
[1729796424649,0.03952984,2524.4,2524.2,0.767]
[1729796426655,4.00088984,2524.4,2524.0,4.74247]
[1729796427066,3.9615,2524.3,2523.8,3.30477081]
[1729796427225,0.03916129,2524.2,2523.8,8.84454968]
[1729796427422,3.9615,2524.3,2523.8,8.84454968]
[1729796427620,0.03910747,2524.2,2523.6,3.30477081]
[1729796427913,0.8035,2524.2,2523.8,3.96226]
[1729796428035,4.76517,2524.2,2523.8,3.96226]
[1729796428225,0.03901655,2524.1,2523.7,3.96242]
[1729796428641,0.03901655,2524.1,2523.7,7.92478]
[1729796428857,4.76517,2524.2,2523.8,3.96227]
[1729796429029,0.03872592,2524.1,2523.8,3.96227]
[1729796429230,0.03372592,2524.1,2523.8,5.16852008]
[1729796433257,0.03372592,2524.1,2523.8,3.96227]
[1729796433883,0.03372592,2524.1,2523.8,3.9622]
[1729796434947,0.03372592,2524.1,2523.8,3.96219]
[1729796436452,0.03372592,2524.1,2523.9,3.96209]
[1729796437583,0.03372592,2524.1,2523.8,7.92437]
[1729796437750,0.03372592,2524.1,2523.8,3.96218]
[1729796438856,0.03372592,2524.1,2523.8,7.92437]
[1729796439165,0.03372592,2524.1,2523.7,3.96232]
[1729796440099,0.03372592,2524.1,2523.8,3.96219]
[1729796441201,0.03372592,2524.1,2523.8,7.26704081]
[1729796441401,0.03372592,2524.1,2523.8,8.07705489]
[1729796441696,0.03372592,2524.1,2523.9,3.96209]
[1729796443473,0.03372592,2524.1,2523.8,8.07698489]
[1729796444003,0.03372592,2524.1,2523.8,4.77221408]
[1729796444309,0.03372592,2524.1,2523.8,3.9622]
[1729796445684,0.03372592,2524.1,2523.9,3.9621]
[1729796445979,0.03372592,2524.1,2523.8,3.9622]
[1729796446999,0.03372592,2524.1,2523.8,7.9244]
[1729796450006,0.03372592,2524.1,2523.8,3.9622]
[1729796450191,0.03372592,2524.1,2523.7,0.82890787]
[1729796450192,0.03372592,2524.1,2523.7,4.04164067]
[1729796450403,0.03372592,2524.1,2523.7,5.06681879]
[1729796451011,0.03372592,2524.1,2523.7,9.02917879]
[1729796451178,0.03372592,2524.1,2523.8,3.96218]
[1729796452292,0.03372592,2524.1,2524.0,1.62822434]
[1729796453717,0.03372592,2524.1,2523.9,1.62822434]
[1729796453907,0.03372592,2524.1,2524.0,1.62822434]
[1729796454107,0.03372592,2524.1,2523.9,1.62822434]
[1729796454318,0.03372592,2524.1,2524.0,1.62822434]
[1729796454527,0.03372592,2524.1,2523.9,1.62822434]
[1729796454751,0.03372592,2524.1,2524.0,1.62822434]
[1729796457192,0.03372592,2524.1,2524.0,2.18725177]
[1729796457393,0.8296,2524.4,2524.1,3.96173]
[1729796457632,0.8296,2524.4,2524.2,1.62822434]
[1729796458201,4.79094,2524.4,2524.2,1.62822434]
[1729796458531,0.8296,2524.4,2524.2,1.62822434]
[1729796459006,4.79093,2524.4,2524.2,1.62822434]
[1729796460130,0.8296,2524.4,2524.2,1.62822434]
[1729796461031,0.8296,2524.4,2523.9,0.8068]
[1729796461032,3.96171,2524.2,2523.8,3.96219]
[1729796461233,3.96183,2524.1,2523.9,1.62822434]
[1729796461534,0.82123101,2524.1,2524.0,1.62822434]
[1729796462748,4.78303101,2524.1,2523.9,1.62822434]
[1729796463803,1.2571947,2524.1,2523.6,0.7691]
[1729796464146,1.22096369,2524.1,2523.7,5.59060434]
[1729796464305,1.22096369,2524.1,2524.0,1.62822434]
[1729796464306,0.785,2524.1,2524.0,1.62822434]
[1729796465059,0.03521772,2524.1,2524.0,5.59011434]
[1729796465336,0.8258,2524.4,2524.1,3.96176]
[1729796465566,0.8258,2524.4,2524.2,1.62822434]
[1729796466416,0.8258,2524.4,2524.0,8.74781]
[1729796466628,0.8258,2524.4,2524.0,4.78586]
[1729796466850,4.78721,2524.4,2524.0,4.78586]
[1729796467153,3.96153,2524.3,2524.0,0.824]
[1729796467329,3.96153,2524.3,2523.9,3.96209]
[1729796468263,3.96153,2524.3,2523.8,4.78614]
[1729796468442,3.96153,2524.3,2523.8,8.74833]
[1729796468627,3.96165,2524.2,2523.8,4.78614]
[1729796468959,3.96165,2524.2,2523.9,1.03018027]
[1729796468960,3.96187,2524.1,2523.9,1.03018027]
[1729796469121,3.96187,2524.1,2523.8,1.65288901]
[1729796469454,3.96187,2524.1,2523.9,1.03021028]
[1729796469657,3.96187,2524.1,2523.8,1.65288901]
[1729796469841,3.96187,2524.1,2523.9,1.86008292]
[1729796470025,3.96187,2524.1,2524.0,1.03119391]
[1729796471149,3.96187,2524.1,2524.0,1.86008292]
[1729796471474,3.96187,2524.1,2524.0,1.03119391]
[1729796471765,3.96187,2524.1,2524.0,1.8605942]
[1729796473760,3.96173,2524.2,2524.0,1.8605942]
[1729796474064,3.96173,2524.2,2524.1,1.03170519]
[1729796476592,3.96173,2524.2,2524.1,1.03205019]
[1729796478697,3.96173,2524.2,2524.1,1.8609392]
[1729796478876,3.96173,2524.2,2524.1,1.03205019]
[1729796481399,3.96173,2524.2,2524.1,1.03209376]
[1729796481864,3.96152,2524.3,2524.1,1.86098277]
[1729796482192,3.96152,2524.3,2524.2,1.03209376]
[1729796482787,3.96165,2524.2,2524.0,0.82888901]
[1729796482983,3.96165,2524.2,2524.1,1.03209932]
[1729796485763,1.675497,2524.2,2523.9,0.82888901]
[1729796486000,1.675497,2524.2,2523.8,0.82888901]
[1729796486001,3.96212,2523.9,2523.8,0.82888901]
[1729796486160,3.96212,2523.9,2523.8,1.86093544]
[1729796487187,5.658728,2523.9,2523.8,1.03204643]
[1729796488521,4.78412,2523.9,2523.8,1.03204643]
[1729796491511,0.822,2523.9,2523.6,1.62863576]
[1729796491720,2.50353276,2524.2,2523.2,3.70885028]
[1729796491721,0.8056,2523.6,2523.2,0.82888901]
[1729796492013,3.96353,2523.0,2522.9,0.82888901]
[1729796492219,1.62863576,2523.1,2522.8,1.03077372]
[1729796492403,1.62863576,2523.1,2522.7,1.03079496]
[1729796492404,3.96364,2523.0,2522.7,1.03079496]
[1729796492600,3.96364,2523.0,2522.6,2.58164907]
[1729796492803,3.96364,2523.0,2522.7,1.0307904]
[1729796493004,3.9637,2522.9,2522.6,0.95301331]
[1729796493200,3.96381,2522.9,2522.6,0.1241243]
[1729796493406,3.96381,2522.9,2522.6,1.75276006]
[1729796493694,3.964,2522.7,2522.6,0.1241243]
[1729796493917,3.96377,2522.9,2522.6,1.75276006]
[1729796494122,3.96377,2522.9,2522.6,0.1241243]
[1729796494325,7.92754,2522.9,2522.6,0.1241243]
[1729796494494,3.96377,2522.9,2522.6,0.1241243]
[1729796494701,0.7894,2523.0,2522.6,0.1241243]
[1729796495490,4.75274,2523.2,2522.6,4.8501643]
[1729796495746,3.96293,2523.4,2522.9,3.96362]
[1729796497588,4.75225,2523.5,2523.0,3.96346]
[1729796497745,4.75223,2523.5,2523.0,3.96346]
[1729796498449,8.7151,2523.5,2523.0,3.96346]
[1729796498785,4.73016,2523.8,2523.3,3.96302]
[1729796498984,3.96246,2523.7,2523.3,3.96302]
[1729796500299,3.96212,2523.9,2523.3,3.96302]
[1729796500471,3.96205,2524.0,2523.5,3.96267]
[1729796500660,3.96205,2524.0,2523.6,3.96255]
[1729796500993,0.7678,2524.1,2523.6,3.96255]
[1729796501159,3.96149,2524.3,2523.9,3.96208]
[1729796501356,3.96149,2524.3,2523.8,4.74067]
[1729796501690,3.96149,2524.3,2523.8,5.610982]
[1729796501893,7.28189881,2524.7,2523.4,8.49908982]
[1729796501894,3.31101881,2524.1,2523.5,3.96269]
[1729796502194,3.96214,2523.9,2523.5,3.96271]
[1729796502700,3.96214,2523.9,2523.3,0.7784]
[1729796502884,3.96229,2523.8,2523.4,3.96289]
[1729796504397,3.96245,2523.7,2523.3,0.7784]
[1729796504891,7.92502,2523.7,2523.3,0.7784]
[1729796505396,3.96245,2523.7,2523.3,0.7784]
[1729796505691,7.925,2523.7,2523.3,0.7784]
[1729796505891,3.96245,2523.7,2523.3,0.7784]
[1729796506278,7.92498,2523.7,2523.3,0.7784]
[1729796506471,3.96245,2523.7,2523.3,0.7784]
[1729796506674,7.92496,2523.7,2523.3,0.7784]
[1729796507280,3.96245,2523.7,2523.3,0.7784]
[1729796509977,3.96245,2523.7,2523.3,4.74144]
[1729796510897,4.74648,2523.8,2523.4,3.96289]
[1729796511397,4.74648,2523.8,2523.3,4.74146]
[1729796511964,3.96244,2523.7,2523.3,4.74146]
[1729796512184,4.7465,2523.8,2523.3,5.611827]
[1729796512386,4.7465,2523.8,2523.3,4.74137]
[1729796512593,3.9623,2523.8,2523.3,4.74137]
[1729796513099,3.96171,2524.2,2523.7,7.92471]
[1729796513310,3.96129,2524.5,2523.8,0.8629386]
[1729796513471,4.73342,2524.6,2524.1,3.96174]
[1729796513672,3.96087,2524.7,2524.2,3.96154]
[1729796513895,3.96087,2524.7,2524.3,4.74517]
[1729796515008,3.96072,2524.8,2524.4,3.96133]
[1729796519187,3.96095,2524.7,2524.3,0.7837]
[1729796519886,3.96125,2524.5,2524.3,0.7837]
[1729796520111,3.96125,2524.5,2524.0,6.96196]
[1729796520112,3.96125,2524.5,2524.1,0.8007]
[1729796520698,4.753127,2524.7,2524.1,4.76247]
[1729796521219,3.96149,2524.4,2524.1,0.8007]
[1729796521429,0.8154,2524.6,2523.9,3.96201]
[1729796521430,3.96171,2524.2,2523.9,0.8007]
[1729796522502,3.96182,2524.1,2523.6,3.96245]
[1729796522801,3.96219,2523.9,2523.7,0.8007]
[1729796522991,3.96219,2523.9,2523.4,3.96284]
[1729796523626,3.9623,2523.8,2523.4,3.96284]
[1729796525430,3.96209,2524.0,2523.5,3.96266]
[1729796525671,3.96193,2524.1,2523.6,0.07925157]
[1729796525817,4.77701,2524.3,2523.7,3.96228]
[1729796525998,4.77701,2524.3,2523.6,3.96259]
[1729796525999,3.96198,2524.0,2523.6,3.96259]
[1729796526701,3.96182,2524.1,2523.6,7.92505]
[1729796526929,3.96182,2524.1,2523.6,3.96246]
[1729796527530,3.96182,2524.1,2523.6,7.92497]
[1729796527725,3.96182,2524.1,2523.6,4.8826624]
[1729796528242,3.96050137,2524.1,2523.6,4.8826624]
[1729796533238,7.92317,2524.3,2523.8,3.9622]
[1729796533420,3.9614,2524.4,2523.9,4.04127807]
[1729796533742,3.96155,2524.3,2524.0,1.13144669]
[1729796533942,3.9614,2524.4,2524.0,1.13144669]
[1729796534130,7.92286,2524.4,2524.0,1.13144669]
[1729796534649,3.9614,2524.4,2524.0,5.09336669]
[1729796534944,3.9614,2524.4,2524.1,0.763]
[1729796534945,3.96156,2524.3,2524.1,0.763]
[1729796536414,7.9228,2524.4,2524.1,0.763]
[1729796536616,3.96151,2524.3,2524.1,0.763]
[1729796546162,3.96048,2525.0,2524.3,0.7987]
[1729796546364,3.96063,2524.9,2524.7,1.62829885]
[1729796546557,3.96016,2525.2,2524.8,5.58899885]
[1729796546758,3.95995,2525.3,2524.9,1.62829885]
[1729796547224,3.96021,2525.2,2524.8,5.58889885]
[1729796547753,3.96021,2525.2,2524.9,1.62829885]
[1729796548139,3.96021,2525.2,2524.8,6.59660098]
[1729796548350,3.95995,2525.3,2524.9,3.96043]
[1729796549233,3.95979,2525.4,2525.0,3.96039]
[1729796549435,3.95992,2525.3,2525.1,0.7987]
[1729796549762,3.95992,2525.3,2524.3,4.25333352]
[1729796549763,3.9604,2525.0,2524.3,0.8043]
[1729796549925,3.9604,2525.0,2524.1,0.8043]
[1729796549926,3.96133,2524.4,2524.1,0.8043]
[1729796551627,3.96118,2524.5,2524.1,0.8043]
[1729796551824,3.96135,2524.4,2524.1,0.8043]
[1729796552656,3.96118,2524.5,2524.1,4.76609]
[1729796554242,3.96118,2524.5,2524.1,5.9389]
[1729796554994,4.05505064,2524.8,2524.1,0.8043]
[1729796555145,4.05505064,2524.8,2523.8,2.89948821]
[1729796555146,7.92338,2524.2,2523.9,0.8329]
[1729796555351,3.96157,2524.3,2523.9,0.8329]
[1729796555574,3.96157,2524.3,2523.9,4.795]
[1729796556678,3.96157,2524.3,2523.9,0.8329]
[1729796557580,3.96157,2524.3,2523.9,4.79502]
[1729796557780,4.75592,2524.4,2524.0,3.96193]
[1729796557946,3.96142,2524.4,2524.0,3.96193]
[1729796558283,7.92291,2524.4,2523.9,5.670732]
[1729796559347,3.96142,2524.4,2523.9,5.670732]
[1729796559980,7.92287,2524.4,2523.9,5.670732]
[1729796561681,3.96158,2524.3,2523.9,5.670732]
[1729796563289,3.96158,2524.3,2523.9,1.708642]
[1729796563463,3.96181,2524.1,2523.8,1.02907266]
[1729796563659,3.96181,2524.1,2523.8,1.02908561]
[1729796564275,3.96181,2524.1,2523.7,4.79121901]
[1729796564480,3.96181,2524.1,2523.8,1.02912575]
[1729796564857,3.96202,2524.0,2523.7,1.02921932]
[1729796565454,3.96212,2523.9,2523.6,1.81171932]
[1729796565655,3.96212,2523.9,2523.6,2.64060833]
[1729796565869,3.96197,2524.0,2523.7,1.02921932]
[1729796567073,3.96212,2523.9,2523.7,1.02921932]
[1729796567289,3.96198,2524.0,2523.6,1.81171932]
[1729796567582,3.96198,2524.0,2523.6,2.99264951]
[1729796567902,3.96198,2524.0,2523.6,6.95521951]
[1729796568058,3.96196,2524.0,2523.6,1.96343019]
[1729796568258,3.96243,2523.7,2523.4,0.82888901]
[1729796568478,4.7257,2523.8,2523.4,4.99226543]
[1729796568681,4.7257,2523.8,2523.4,3.96288]
[1729796568955,3.96244,2523.7,2523.3,5.55569901]
[1729796569154,3.96244,2523.7,2523.4,1.02940838]
[1729796569356,3.96244,2523.7,2523.3,0.7639]
[1729796569665,3.96244,2523.7,2523.1,0.82888901]
[1729796569666,3.96275,2523.5,2523.1,0.82888901]
[1729796569867,3.96275,2523.5,2523.1,1.02949554]
[1729796570090,3.96275,2523.5,2523.0,4.78261]
[1729796570403,3.96315,2523.3,2522.9,0.82888901]
[1729796570692,3.96315,2523.3,2522.9,1.02938138]
[1729796571263,4.73802,2523.4,2522.9,4.99291138]
[1729796571466,4.73802,2523.4,2522.9,3.96353]
[1729796571887,4.73802,2523.4,2522.9,5.18260082]
[1729796573398,4.73802,2523.4,2523.0,3.96341]
[1729796573809,8.70106,2523.4,2522.9,3.96353]
[1729796574013,4.73802,2523.4,2522.9,7.92714]
[1729796575677,3.96292,2523.4,2522.9,7.92714]
[1729796575904,3.96292,2523.4,2523.0,0.874624]
[1729796576108,3.96292,2523.4,2523.0,4.838064]
[1729796579773,4.73783,2523.6,2523.0,4.838064]
[1729796579774,0.7751,2523.6,2523.1,3.9633]
[1729796579975,0.7751,2523.6,2523.2,0.8191]
[1729796579976,4.73776,2523.6,2523.2,0.8191]
[1729796580170,3.96292,2523.4,2523.0,4.838134]
[1729796582518,7.92594,2523.4,2523.0,0.874624]
[1729796582817,7.92594,2523.4,2522.9,4.78266]
[1729796583014,3.96292,2523.4,2522.9,8.74624]
[1729796585128,3.96292,2523.4,2523.0,3.96352]
[1729796587020,7.92593,2523.4,2523.0,3.96352]
[1729796587222,7.92593,2523.4,2522.7,0.8191]
[1729796587223,0.7751,2523.2,2522.7,0.8191]
[1729796587441,7.92754,2522.9,2522.6,0.1241243]
[1729796587718,3.9637,2522.9,2522.6,0.1241243]
[1729796587883,4.73896,2522.8,2522.6,0.1241243]
[1729796589004,0.7751,2522.8,2522.6,0.1241243]
[1729796589936,0.755,2523.0,2522.6,0.1241243]
[1729796590114,3.96352,2523.1,2522.7,4.7849]
[1729796590756,0.755,2523.2,2522.8,3.96378]
[1729796590757,4.71823,2523.2,2522.8,3.96378]
[1729796591037,3.96253,2523.7,2523.0,3.30495064]
[1729796591038,3.96252,2523.7,2523.0,3.30495064]
[1729796591246,7.92446,2523.9,2523.4,4.78382]
[1729796591544,3.96237,2523.8,2523.4,0.821]
[1729796591905,0.792446,2523.9,2523.1,4.78432]
[1729796592145,3.96275,2523.5,2523.1,4.78432]
[1729796594947,3.96235,2523.8,2523.3,3.96299]
[1729796595647,3.96253,2523.7,2523.3,3.96299]
[1729796596912,3.96262,2523.6,2523.2,3.96319]
[1729796597917,0.7852,2523.6,2523.1,0.821]
[1729796598149,3.96315,2523.3,2522.9,4.74267]
[1729796598355,3.96288,2523.5,2523.0,3.96349]
[1729796598356,3.96293,2523.4,2523.0,3.96349]
[1729796598920,3.96288,2523.5,2523.1,3.96333]
[1729796599133,3.96252,2523.7,2523.2,3.96312]
[1729796599660,7.92507,2523.7,2523.2,3.96312]
[1729796599963,3.96252,2523.7,2523.2,3.96312]
[1729796600321,3.96226,2523.9,2523.4,3.96283]
[1729796600322,7.9245,2523.9,2523.4,3.96283]
[1729796600559,3.96225,2523.9,2523.4,3.96283]
[1729796600796,3.96241,2523.8,2523.3,3.96303]
[1729796601755,3.96244,2523.7,2523.3,3.96298]
[1729796602375,3.96225,2523.9,2523.3,3.96298]
[1729796602376,3.96225,2523.9,2523.5,3.96273]
[1729796602555,3.9622,2523.9,2523.6,0.8096]
[1729796603343,3.96199,2524.0,2523.6,0.8096]
[1729796606436,3.96199,2524.0,2523.6,4.77216]
[1729796607068,3.96213,2523.9,2523.6,0.8096]
[1729796607374,3.96219,2523.9,2523.6,0.8096]
[1729796607538,3.96199,2524.0,2523.6,0.8096]
[1729796607539,3.9623,2523.8,2523.6,0.8096]
[1729796608183,3.96206,2524.0,2523.6,0.8096]
[1729796608385,3.96232,2523.8,2523.4,3.96283]
[1729796608676,3.96232,2523.8,2523.4,0.8011]
[1729796609052,4.76202,2523.8,2523.4,0.8011]
[1729796609282,1.275902,2523.8,2523.1,0.82888901]
[1729796609450,3.96284,2523.5,2523.1,1.02951016]
[1729796610096,3.96284,2523.5,2523.1,1.02954973]
[1729796610373,3.96301,2523.4,2523.1,1.02954973]
[1729796610562,4.79616,2523.4,2523.1,1.02954973]
[1729796610754,4.79616,2523.4,2522.8,5.60369901]
[1729796610755,3.96333,2523.2,2522.8,5.60369901]
[1729796610954,3.96333,2523.2,2522.9,1.02985023]
[1729796611167,3.96333,2523.2,2523.0,1.02985023]
[1729796611478,3.96333,2523.2,2522.9,1.02985023]
[1729796612752,3.96333,2523.2,2522.8,5.60369901]
[1729796613084,3.96333,2523.2,2522.9,1.03015214]
[1729796613269,3.96333,2523.2,2522.8,5.60365901]
[1729796613591,3.96333,2523.2,2522.9,1.03030424]
[1729796613882,3.96333,2523.2,2522.8,5.60365901]
[1729796614087,3.96333,2523.2,2522.9,1.03030616]